[Event "Titled Tuesday Blitz February 07 Late 2023"]
[White "Bortnyk, Olexandr"]
[Black "Dubov, Daniil"]
[WhiteFideId "14120828"]
[BlackFideId "24126055"]
[WhiteElo "2605"]
[BlackElo "2708"]
[Result "1/2-1/2"]
[Round "05"]
[TimeControl "180+2"]
[Date "2023.02.07"]
[WhiteClock "0:00:04"]
[BlackClock "0:00:07"]

1. d4 {[%clk 0:03:00]}  d5 {[%clk 0:03:00]} 2. Nc3 {[%clk 0:03:01]}  Nf6 {[%clk 0:02:59]} 3. Bf4 {[%clk 0:03:01]}  c5 {[%clk 0:02:57]} 4. e4 {[%clk 0:03:01]}  cxd4 {[%clk 0:02:56]} 5. Qxd4 {[%clk 0:03:02]}  Nc6 {[%clk 0:02:56]} 6. Bb5 {[%clk 0:03:02]}  Bd7 {[%clk 0:02:56]} 7. Bxc6 {[%clk 0:03:02]}  Bxc6 {[%clk 0:02:57]} 8. e5 {[%clk 0:03:03]}  Nd7 {[%clk 0:02:58]} 9. e6 {[%clk 0:03:02]}  fxe6 {[%clk 0:02:58]} 10. Nf3 {[%clk 0:03:01]}  Qb6 {[%clk 0:02:57]} 11. Qd2 {[%clk 0:03:01]}  g6 {[%clk 0:01:37]} 12. O-O-O {[%clk 0:02:59]}  Bg7 {[%clk 0:01:31]} 13. Rhe1 {[%clk 0:02:59]}  d4 {[%clk 0:01:14]} 14. Nxd4 {[%clk 0:02:38]}  Bxd4 {[%clk 0:01:13]} 15. Qxd4 {[%clk 0:02:38]}  Qxd4 {[%clk 0:01:14]} 16. Rxd4 {[%clk 0:02:39]}  Kf7 {[%clk 0:01:02]} 17. f3 {[%clk 0:02:21]}  Nf6 {[%clk 0:01:00]} 18. Be5 {[%clk 0:02:15]}  Rad8 {[%clk 0:00:56]} 19. Ne2 {[%clk 0:02:15]}  Rxd4 {[%clk 0:00:54]} 20. Nxd4 {[%clk 0:02:15]}  Bd7 {[%clk 0:00:55]} 21. c4 {[%clk 0:02:12]}  Rc8 {[%clk 0:00:53]} 22. b3 {[%clk 0:02:07]}  b5 {[%clk 0:00:52]} 23. c5 {[%clk 0:01:45]}  Rxc5+ {[%clk 0:00:51]} 24. Kb2 {[%clk 0:01:46]}  Nd5 {[%clk 0:00:45]} 25. a3 {[%clk 0:01:38]}  a5 {[%clk 0:00:44]} 26. Bg3 {[%clk 0:01:35]}  a4 {[%clk 0:00:29]} 27. b4 {[%clk 0:01:34]}  Rc4 {[%clk 0:00:29]} 28. Rd1 {[%clk 0:01:32]}  Ne3 {[%clk 0:00:20]} 29. Rd2 {[%clk 0:01:16]}  Rc8 {[%clk 0:00:18]} 30. Rd3 {[%clk 0:01:05]}  Nc4+ {[%clk 0:00:13]} 31. Ka1 {[%clk 0:01:02]}  e5 {[%clk 0:00:13]} 32. Nc2 {[%clk 0:00:19]}  Bf5 {[%clk 0:00:13]} 33. Rc3 {[%clk 0:00:19]}  Bxc2 {[%clk 0:00:14]} 34. Rxc2 {[%clk 0:00:20]}  Rd8 {[%clk 0:00:14]} 35. Rc3 {[%clk 0:00:20]}  Rd1+ {[%clk 0:00:13]} 36. Ka2 {[%clk 0:00:19]}  Rd2+ {[%clk 0:00:14]} 37. Kb1 {[%clk 0:00:20]}  Ke6 {[%clk 0:00:13]} 38. Bh4 {[%clk 0:00:17]}  Rxg2 {[%clk 0:00:12]} 39. Bg3 {[%clk 0:00:17]}  Rd2 {[%clk 0:00:12]} 40. Bh4 {[%clk 0:00:15]}  h6 {[%clk 0:00:12]} 41. Bg3 {[%clk 0:00:15]}  g5 {[%clk 0:00:12]} 42. Ka1 {[%clk 0:00:15]}  Kd5 {[%clk 0:00:12]} 43. Rc1 {[%clk 0:00:13]}  Kd4 {[%clk 0:00:12]} 44. Re1 {[%clk 0:00:13]}  Rd3 {[%clk 0:00:11]} 45. h4 {[%clk 0:00:12]}  Rxf3 {[%clk 0:00:11]} 46. Rd1+ {[%clk 0:00:10]}  Rd3 {[%clk 0:00:06]} 47. Bf2+ {[%clk 0:00:09]}  Ke4 {[%clk 0:00:07]} 48. Rh1 {[%clk 0:00:07]}  Rxa3+ {[%clk 0:00:06]} 49. Kb1 {[%clk 0:00:08]}  Rb3+ {[%clk 0:00:07]} 50. Ka1 {[%clk 0:00:06]}  Rf3 {[%clk 0:00:07]} 51. Bc5 {[%clk 0:00:07]}  g4 {[%clk 0:00:07]} 52. Re1+ {[%clk 0:00:02]}  Kf5 {[%clk 0:00:07]} 53. Bxe7 {[%clk 0:00:01]}  h5 {[%clk 0:00:07]} 54. Ka2 {[%clk 0:00:02]}  g3 {[%clk 0:00:07]} 55. Bc5 {[%clk 0:00:03]}  Kg4 {[%clk 0:00:07]} 56. Re4+ {[%clk 0:00:03]}  Rf4 {[%clk 0:00:06]} 57. Re2 {[%clk 0:00:03]}  Kxh4 {[%clk 0:00:07]} 58. Rc2 {[%clk 0:00:02]}  Kg4 {[%clk 0:00:07]} 59. Rc1 {[%clk 0:00:03]}  h4 {[%clk 0:00:07]} 60. Re1 {[%clk 0:00:02]}  h3 {[%clk 0:00:07]} 61. Bg1 {[%clk 0:00:02]}  h2 {[%clk 0:00:07]} 62. Bxh2 {[%clk 0:00:03]}  Rf2+ {[%clk 0:00:08]} 63. Kb1 {[%clk 0:00:02]}  gxh2 {[%clk 0:00:07]} 64. Rh1 {[%clk 0:00:02]}  Rg2 {[%clk 0:00:07]} 65. Ka1 {[%clk 0:00:03]}  Rg1+ {[%clk 0:00:07]} 66. Ka2 {[%clk 0:00:04]}  Rxh1 {[%clk 0:00:07]} 1/2-1/2


[Site "https://www.chess.com"]

[Event "Titled Tuesday Blitz February 07 Late 2023"]
[White "Andreikin, Dmitry"]
[Black "Urazayev, Arystanbek"]
[WhiteFideId "4158814"]
[BlackFideId "13709810"]
[WhiteElo "2729"]
[BlackElo "2460"]
[Result "1-0"]
[Round "05"]
[TimeControl "180+2"]
[Date "2023.02.07"]
[WhiteClock "0:02:25"]
[BlackClock "0:02:31"]

1. c4 {[%clk 0:03:00]}  e6 {[%clk 0:03:00]} 2. Nc3 {[%clk 0:02:59]}  d5 {[%clk 0:03:00]} 3. d4 {[%clk 0:02:59]}  Nf6 {[%clk 0:03:00]} 4. cxd5 {[%clk 0:02:59]}  exd5 {[%clk 0:03:01]} 5. Bg5 {[%clk 0:02:58]}  c6 {[%clk 0:03:02]} 6. e3 {[%clk 0:02:58]}  h6 {[%clk 0:03:02]} 7. Bh4 {[%clk 0:02:58]}  Be7 {[%clk 0:03:02]} 8. Bd3 {[%clk 0:02:57]}  O-O {[%clk 0:03:03]} 9. Nge2 {[%clk 0:02:57]}  Re8 {[%clk 0:03:03]} 10. Qc2 {[%clk 0:02:54]}  a5 {[%clk 0:03:03]} 11. O-O {[%clk 0:02:50]}  Na6 {[%clk 0:03:03]} 12. a3 {[%clk 0:02:50]}  Nc7 {[%clk 0:03:03]} 13. Rae1 {[%clk 0:02:50]}  Ne6 {[%clk 0:03:03]} 14. Bf5 {[%clk 0:02:45]}  b5 {[%clk 0:02:57]} 15. Nd1 {[%clk 0:02:39]}  Bd7 {[%clk 0:02:37]} 16. Bxe6 {[%clk 0:02:31]}  Bxe6 {[%clk 0:02:30]} 17. Qxc6 {[%clk 0:02:30]}  Rc8 {[%clk 0:02:30]} 18. Qxb5 {[%clk 0:02:28]}  Rb8 {[%clk 0:02:31]} 19. Qd3 {[%clk 0:02:26]}  Rxb2 {[%clk 0:02:31]} 20. Nxb2 {[%clk 0:02:25]} 1-0


[Site "https://www.chess.com"]

[Event "Titled Tuesday Blitz February 07 Late 2023"]
[White "Bacrot, Etienne"]
[Black "Fedoseev, Vladimir"]
[WhiteFideId "605506"]
[BlackFideId "24130737"]
[WhiteElo "2667"]
[BlackElo "2680"]
[Result "0-1"]
[Round "05"]
[TimeControl "180+2"]
[Date "2023.02.07"]
[WhiteClock "0:00:05"]
[BlackClock "0:01:31"]

1. e4 {[%clk 0:03:00]}  c5 {[%clk 0:02:54]} 2. Nf3 {[%clk 0:03:00]}  e6 {[%clk 0:02:54]} 3. c3 {[%clk 0:03:00]}  Nf6 {[%clk 0:02:52]} 4. e5 {[%clk 0:02:59]}  Nd5 {[%clk 0:02:52]} 5. d4 {[%clk 0:02:59]}  cxd4 {[%clk 0:02:51]} 6. cxd4 {[%clk 0:03:00]}  d6 {[%clk 0:02:52]} 7. Bd3 {[%clk 0:02:57]}  Nc6 {[%clk 0:02:51]} 8. O-O {[%clk 0:02:55]}  Be7 {[%clk 0:02:51]} 9. a3 {[%clk 0:02:54]}  b6 {[%clk 0:02:46]} 10. Nbd2 {[%clk 0:02:45]}  Bb7 {[%clk 0:02:44]} 11. Ne4 {[%clk 0:02:42]}  dxe5 {[%clk 0:02:39]} 12. dxe5 {[%clk 0:02:43]}  Qc7 {[%clk 0:02:39]} 13. Re1 {[%clk 0:02:13]}  Nxe5 {[%clk 0:02:18]} 14. Nxe5 {[%clk 0:02:08]}  Qxe5 {[%clk 0:02:17]} 15. Nc5 {[%clk 0:01:35]}  Qc7 {[%clk 0:02:16]} 16. Nxb7 {[%clk 0:01:35]}  Qxb7 {[%clk 0:02:15]} 17. Qa4+ {[%clk 0:01:19]}  Kf8 {[%clk 0:02:11]} 18. Ba6 {[%clk 0:01:05]}  Qc7 {[%clk 0:02:10]} 19. Bd2 {[%clk 0:01:03]}  Rd8 {[%clk 0:02:11]} 20. Rac1 {[%clk 0:01:02]}  Qb8 {[%clk 0:02:10]} 21. Rc6 {[%clk 0:00:55]}  h5 {[%clk 0:02:09]} 22. Rec1 {[%clk 0:00:53]}  Qe5 {[%clk 0:02:01]} 23. Rc8 {[%clk 0:00:44]}  g6 {[%clk 0:01:56]} 24. Qb5 {[%clk 0:00:09]}  Qd4 {[%clk 0:01:44]} 25. Rxd8+ {[%clk 0:00:06]}  Bxd8 {[%clk 0:01:43]} 26. Be1 {[%clk 0:00:06]}  Kg7 {[%clk 0:01:40]} 27. Qd7 {[%clk 0:00:06]}  Qxb2 {[%clk 0:01:36]} 28. Rd1 {[%clk 0:00:05]}  Qc2 {[%clk 0:01:31]} 0-1


[Site "https://www.chess.com"]

[Event "Titled Tuesday Blitz February 07 Late 2023"]
[White "Maksimovic, Bojan"]
[Black "Bluebaum, Matthias"]
[WhiteFideId "14408120"]
[BlackFideId "24651516"]
[WhiteElo "2486"]
[BlackElo "2669"]
[Result "0-1"]
[Round "05"]
[TimeControl "180+2"]
[Date "2023.02.07"]
[WhiteClock "0:00:03"]
[BlackClock "0:00:37"]

1. e4 {[%clk 0:03:00]}  e6 {[%clk 0:03:00]} 2. d4 {[%clk 0:02:59]}  d5 {[%clk 0:02:59]} 3. Nc3 {[%clk 0:02:59]}  Nf6 {[%clk 0:03:00]} 4. Bg5 {[%clk 0:02:59]}  dxe4 {[%clk 0:03:00]} 5. Nxe4 {[%clk 0:02:59]}  Be7 {[%clk 0:03:01]} 6. Bxf6 {[%clk 0:02:59]}  gxf6 {[%clk 0:03:01]} 7. Nf3 {[%clk 0:02:59]}  f5 {[%clk 0:03:02]} 8. Nc3 {[%clk 0:02:59]}  a6 {[%clk 0:03:02]} 9. g3 {[%clk 0:02:59]}  b5 {[%clk 0:03:02]} 10. Bg2 {[%clk 0:03:00]}  Bb7 {[%clk 0:03:03]} 11. O-O {[%clk 0:03:00]}  O-O {[%clk 0:03:04]} 12. Qe2 {[%clk 0:02:47]}  c5 {[%clk 0:03:01]} 13. Rad1 {[%clk 0:02:31]}  cxd4 {[%clk 0:02:59]} 14. Nxd4 {[%clk 0:02:29]}  Bxg2 {[%clk 0:02:44]} 15. Kxg2 {[%clk 0:02:25]}  Qc7 {[%clk 0:02:40]} 16. Qf3 {[%clk 0:02:09]}  Nd7 {[%clk 0:02:29]} 17. Rfe1 {[%clk 0:01:39]}  Ne5 {[%clk 0:02:24]} 18. Qf4 {[%clk 0:01:30]}  Qb7+ {[%clk 0:02:23]} 19. Kg1 {[%clk 0:01:30]}  Ng6 {[%clk 0:02:22]} 20. Qf3 {[%clk 0:01:27]}  Qxf3 {[%clk 0:02:21]} 21. Nxf3 {[%clk 0:01:28]}  Bf6 {[%clk 0:02:20]} 22. Re3 {[%clk 0:00:39]}  Rfc8 {[%clk 0:02:16]} 23. a3 {[%clk 0:00:39]}  Rab8 {[%clk 0:02:00]} 24. Rd2 {[%clk 0:00:35]}  a5 {[%clk 0:01:52]} 25. Nd1 {[%clk 0:00:34]}  b4 {[%clk 0:01:52]} 26. axb4 {[%clk 0:00:34]}  axb4 {[%clk 0:01:53]} 27. Kg2 {[%clk 0:00:25]}  Ne7 {[%clk 0:01:53]} 28. Rb3 {[%clk 0:00:21]}  Nc6 {[%clk 0:01:49]} 29. c3 {[%clk 0:00:18]}  bxc3 {[%clk 0:01:42]} 30. Rxb8 {[%clk 0:00:17]}  Rxb8 {[%clk 0:01:43]} 31. bxc3 {[%clk 0:00:15]}  Na5 {[%clk 0:01:40]} 32. Rd3 {[%clk 0:00:12]}  Rc8 {[%clk 0:01:38]} 33. Nd4 {[%clk 0:00:11]}  Nc4 {[%clk 0:01:38]} 34. Ne3 {[%clk 0:00:10]}  Ne5 {[%clk 0:01:39]} 35. Rd1 {[%clk 0:00:09]}  Rxc3 {[%clk 0:01:39]} 36. Nb5 {[%clk 0:00:10]}  Rb3 {[%clk 0:01:36]} 37. Nd6 {[%clk 0:00:09]}  Nd3 {[%clk 0:01:27]} 38. Nec4 {[%clk 0:00:07]}  Be7 {[%clk 0:01:14]} 39. Na5 {[%clk 0:00:04]}  Ra3 {[%clk 0:01:07]} 40. Ndc4 {[%clk 0:00:05]}  Rc3 {[%clk 0:01:07]} 41. Nc6 {[%clk 0:00:02]}  Bc5 {[%clk 0:01:05]} 42. N6e5 {[%clk 0:00:01]}  Nxf2 {[%clk 0:00:44]} 43. Rd8+ {[%clk 0:00:01]}  Kg7 {[%clk 0:00:44]} 44. Rd7 {[%clk 0:00:02]}  Ng4 {[%clk 0:00:45]} 45. Nxg4 {[%clk 0:00:01]}  fxg4 {[%clk 0:00:44]} 46. Ne5 {[%clk 0:00:02]}  Rc2+ {[%clk 0:00:39]} 47. Kf1 {[%clk 0:00:03]}  Rf2+ {[%clk 0:00:39]} 48. Ke1 {[%clk 0:00:03]}  h5 {[%clk 0:00:37]} 49. Nd3 {[%clk 0:00:03]}  Rf5 {[%clk 0:00:38]} 50. Rc7 {[%clk 0:00:02]}  Bg1 {[%clk 0:00:37]} 51. Nf4 {[%clk 0:00:02]}  Bxh2 {[%clk 0:00:36]} 52. Nxe6+ {[%clk 0:00:02]}  Kf6 {[%clk 0:00:36]} 53. Nd4 {[%clk 0:00:03]}  Bxg3+ {[%clk 0:00:36]} 54. Ke2 {[%clk 0:00:03]}  Bxc7 {[%clk 0:00:37]} 0-1


[Site "https://www.chess.com"]

[Event "Titled Tuesday Blitz February 07 Late 2023"]
[White "Carlsen, Magnus"]
[Black "Ibarra Jerez, Jose Carlos"]
[WhiteFideId "1503014"]
[BlackFideId "2226332"]
[WhiteElo "2853"]
[BlackElo "2563"]
[Result "0-1"]
[Round "05"]
[TimeControl "180+2"]
[Date "2023.02.07"]
[WhiteClock "0:00:04"]
[BlackClock "0:00:08"]

1. e4 {[%clk 0:03:00]}  c5 {[%clk 0:02:59]} 2. a3 {[%clk 0:02:59]}  g6 {[%clk 0:02:58]} 3. h4 {[%clk 0:02:53]}  Nf6 {[%clk 0:02:56]} 4. Nc3 {[%clk 0:02:48]}  d6 {[%clk 0:02:54]} 5. Bc4 {[%clk 0:02:48]}  Bg7 {[%clk 0:02:51]} 6. d3 {[%clk 0:02:46]}  Nc6 {[%clk 0:02:50]} 7. Nge2 {[%clk 0:02:37]}  e6 {[%clk 0:02:43]} 8. Ba2 {[%clk 0:02:37]}  d5 {[%clk 0:02:39]} 9. h5 {[%clk 0:02:24]}  dxe4 {[%clk 0:02:30]} 10. h6 {[%clk 0:02:22]}  Bf8 {[%clk 0:02:29]} 11. Bg5 {[%clk 0:02:07]}  exd3 {[%clk 0:02:16]} 12. Rh3 {[%clk 0:02:03]}  d2+ {[%clk 0:02:09]} 13. Bxd2 {[%clk 0:01:32]}  Be7 {[%clk 0:01:53]} 14. Rd3 {[%clk 0:01:31]}  Qb6 {[%clk 0:01:49]} 15. Bg5 {[%clk 0:01:21]}  O-O {[%clk 0:01:44]} 16. Qd2 {[%clk 0:01:15]}  Ne5 {[%clk 0:01:21]} 17. Rg3 {[%clk 0:01:13]}  Rd8 {[%clk 0:01:20]} 18. Qf4 {[%clk 0:01:07]}  Ned7 {[%clk 0:01:14]} 19. Rd3 {[%clk 0:00:53]}  Re8 {[%clk 0:00:50]} 20. O-O-O {[%clk 0:00:50]}  Qc6 {[%clk 0:00:21]} 21. Rf3 {[%clk 0:00:33]}  c4 {[%clk 0:00:13]} 22. Rxd7 {[%clk 0:00:23]}  e5 {[%clk 0:00:14]} 23. Qxc4 {[%clk 0:00:13]}  Qxc4 {[%clk 0:00:13]} 24. Bxc4 {[%clk 0:00:11]}  Nxd7 {[%clk 0:00:12]} 25. Bxe7 {[%clk 0:00:06]}  Rxe7 {[%clk 0:00:12]} 26. Nd5 {[%clk 0:00:07]}  Re6 {[%clk 0:00:10]} 27. Nc7 {[%clk 0:00:07]}  Rb8 {[%clk 0:00:03]} 28. Nxe6 {[%clk 0:00:06]}  Nb6 {[%clk 0:00:03]} 29. Bb3 {[%clk 0:00:03]}  Bxe6 {[%clk 0:00:04]} 30. Bxe6 {[%clk 0:00:03]}  fxe6 {[%clk 0:00:05]} 31. Nc3 {[%clk 0:00:04]}  Nd5 {[%clk 0:00:04]} 32. Ne4 {[%clk 0:00:03]}  Rf8 {[%clk 0:00:05]} 33. Rxf8+ {[%clk 0:00:03]}  Kxf8 {[%clk 0:00:05]} 34. Kd2 {[%clk 0:00:03]}  Ke7 {[%clk 0:00:05]} 35. g4 {[%clk 0:00:03]}  Nf6 {[%clk 0:00:05]} 36. Nxf6 {[%clk 0:00:01]}  Kxf6 {[%clk 0:00:06]} 37. Ke3 {[%clk 0:00:02]}  Kg5 {[%clk 0:00:06]} 38. Ke4 {[%clk 0:00:02]}  Kxh6 {[%clk 0:00:06]} 39. Kxe5 {[%clk 0:00:02]}  Kg5 {[%clk 0:00:06]} 40. f3 {[%clk 0:00:03]}  h5 {[%clk 0:00:07]} 41. gxh5 {[%clk 0:00:03]}  gxh5 {[%clk 0:00:08]} 42. f4+ {[%clk 0:00:03]}  Kg4 {[%clk 0:00:08]} 43. Kxe6 {[%clk 0:00:04]}  Kxf4 {[%clk 0:00:08]} 0-1


[Site "https://www.chess.com"]

[Event "Titled Tuesday Blitz February 07 Late 2023"]
[White "Svane, Frederik"]
[Black "Naroditsky, Daniel"]
[WhiteFideId "12923044"]
[BlackFideId "2026961"]
[WhiteElo "2600"]
[BlackElo "2618"]
[Result "0-1"]
[Round "05"]
[TimeControl "180+2"]
[Date "2023.02.07"]
[WhiteClock "0:00:01"]
[BlackClock "0:00:14"]

1. c4 {[%clk 0:03:00]}  e5 {[%clk 0:02:59]} 2. g3 {[%clk 0:02:53]}  c6 {[%clk 0:02:55]} 3. d4 {[%clk 0:02:51]}  d6 {[%clk 0:02:41]} 4. Nc3 {[%clk 0:02:48]}  Nd7 {[%clk 0:02:39]} 5. Nf3 {[%clk 0:02:46]}  Ngf6 {[%clk 0:02:39]} 6. Bg2 {[%clk 0:02:47]}  Be7 {[%clk 0:02:39]} 7. O-O {[%clk 0:02:47]}  O-O {[%clk 0:02:40]} 8. e4 {[%clk 0:02:48]}  a6 {[%clk 0:02:39]} 9. d5 {[%clk 0:02:35]}  cxd5 {[%clk 0:02:38]} 10. exd5 {[%clk 0:02:29]}  b5 {[%clk 0:02:30]} 11. cxb5 {[%clk 0:02:27]}  axb5 {[%clk 0:02:31]} 12. Nxb5 {[%clk 0:02:28]}  Ba6 {[%clk 0:02:31]} 13. Nc3 {[%clk 0:01:38]}  Bxf1 {[%clk 0:02:31]} 14. Qxf1 {[%clk 0:01:38]}  Qb6 {[%clk 0:02:11]} 15. Rb1 {[%clk 0:01:37]}  Rfc8 {[%clk 0:02:08]} 16. Be3 {[%clk 0:01:37]}  Qb7 {[%clk 0:01:57]} 17. Nd2 {[%clk 0:01:33]}  Bd8 {[%clk 0:01:45]} 18. Nc4 {[%clk 0:01:29]}  Qb4 {[%clk 0:01:44]} 19. Nd2 {[%clk 0:01:06]}  Ng4 {[%clk 0:01:40]} 20. a3 {[%clk 0:00:54]}  Nxe3 {[%clk 0:01:40]} 21. fxe3 {[%clk 0:00:55]}  Qb6 {[%clk 0:01:35]} 22. Qe2 {[%clk 0:00:52]}  Bg5 {[%clk 0:01:20]} 23. Nc4 {[%clk 0:00:47]}  Qa6 {[%clk 0:01:13]} 24. Bf1 {[%clk 0:00:36]}  Nf6 {[%clk 0:00:58]} 25. b4 {[%clk 0:00:31]}  Qxc4 {[%clk 0:00:49]} 26. Qxc4 {[%clk 0:00:32]}  Rxc4 {[%clk 0:00:49]} 27. Bxc4 {[%clk 0:00:32]}  Rc8 {[%clk 0:00:50]} 28. Nb5 {[%clk 0:00:03]}  Bxe3+ {[%clk 0:00:47]} 29. Kf1 {[%clk 0:00:02]}  Rxc4 {[%clk 0:00:48]} 30. Nxd6 {[%clk 0:00:02]}  Rc2 {[%clk 0:00:49]} 31. b5 {[%clk 0:00:02]}  Ng4 {[%clk 0:00:47]} 32. b6 {[%clk 0:00:02]}  Nxh2+ {[%clk 0:00:30]} 33. Ke1 {[%clk 0:00:02]}  Rd2 {[%clk 0:00:30]} 34. Ne4 {[%clk 0:00:01]}  Nf3+ {[%clk 0:00:26]} 35. Kf1 {[%clk 0:00:02]}  Rh2 {[%clk 0:00:18]} 36. b7 {[%clk 0:00:01]}  Rh1+ {[%clk 0:00:13]} 37. Kg2 {[%clk 0:00:01]}  Rxb1 {[%clk 0:00:14]} 0-1


[Site "https://www.chess.com"]

[Event "Titled Tuesday Blitz February 07 Late 2023"]
[White "Deac, Bogdan-Daniel"]
[Black "Baskakov, Egor"]
[WhiteFideId "1226380"]
[BlackFideId "24197866"]
[WhiteElo "2700"]
[BlackElo "2215"]
[Result "1-0"]
[Round "05"]
[TimeControl "180+2"]
[Date "2023.02.07"]
[WhiteClock "0:01:51"]
[BlackClock "0:01:58"]

1. b3 {[%clk 0:03:00]}  Nf6 {[%clk 0:02:44]} 2. Bb2 {[%clk 0:03:00]}  e6 {[%clk 0:02:38]} 3. Nf3 {[%clk 0:03:00]}  Be7 {[%clk 0:02:37]} 4. c4 {[%clk 0:02:58]}  O-O {[%clk 0:02:36]} 5. g3 {[%clk 0:02:59]}  d5 {[%clk 0:02:37]} 6. Bg2 {[%clk 0:02:59]}  b6 {[%clk 0:02:35]} 7. O-O {[%clk 0:02:56]}  Bb7 {[%clk 0:02:35]} 8. cxd5 {[%clk 0:02:56]}  exd5 {[%clk 0:02:34]} 9. d4 {[%clk 0:02:56]}  Ne4 {[%clk 0:02:32]} 10. Nc3 {[%clk 0:02:54]}  f5 {[%clk 0:02:32]} 11. Rc1 {[%clk 0:02:54]}  a6 {[%clk 0:02:32]} 12. e3 {[%clk 0:02:48]}  Bd6 {[%clk 0:02:31]} 13. Ne2 {[%clk 0:02:47]}  Nd7 {[%clk 0:02:31]} 14. Nf4 {[%clk 0:02:44]}  Qe7 {[%clk 0:02:29]} 15. h4 {[%clk 0:02:44]}  g6 {[%clk 0:02:25]} 16. Rc2 {[%clk 0:02:39]}  Rae8 {[%clk 0:02:14]} 17. Qa1 {[%clk 0:02:35]}  Qg7 {[%clk 0:02:10]} 18. Rfc1 {[%clk 0:02:34]}  h6 {[%clk 0:02:06]} 19. Rxc7 {[%clk 0:02:29]}  Bxc7 {[%clk 0:02:04]} 20. Rxc7 {[%clk 0:02:30]}  Ba8 {[%clk 0:02:01]} 21. Ne5 {[%clk 0:02:22]}  Rd8 {[%clk 0:01:59]} 22. Ne6 {[%clk 0:02:14]}  Qe7 {[%clk 0:01:58]} 23. Nxf8 {[%clk 0:01:51]} 1-0


[Site "https://www.chess.com"]

[Event "Titled Tuesday Blitz February 07 Late 2023"]
[White "Makarian, Rudik"]
[Black "Martinez Alcantara, Jose Eduardo"]
[WhiteFideId "44105681"]
[BlackFideId "3805662"]
[WhiteElo "2545"]
[BlackElo "2619"]
[Result "1-0"]
[Round "05"]
[TimeControl "180+2"]
[Date "2023.02.07"]
[WhiteClock "0:00:05"]
[BlackClock "0:00:05"]

1. d4 {[%clk 0:03:00]}  Nf6 {[%clk 0:03:00]} 2. c4 {[%clk 0:03:01]}  e6 {[%clk 0:03:00]} 3. Nf3 {[%clk 0:03:01]}  Bb4+ {[%clk 0:03:01]} 4. Bd2 {[%clk 0:03:01]}  Qe7 {[%clk 0:03:01]} 5. g3 {[%clk 0:02:57]}  Bxd2+ {[%clk 0:03:02]} 6. Qxd2 {[%clk 0:02:55]}  Nc6 {[%clk 0:03:02]} 7. Nc3 {[%clk 0:02:55]}  d5 {[%clk 0:03:02]} 8. Ne5 {[%clk 0:02:30]}  O-O {[%clk 0:02:59]} 9. Bg2 {[%clk 0:02:25]}  dxc4 {[%clk 0:02:55]} 10. Nxc6 {[%clk 0:02:06]}  bxc6 {[%clk 0:02:56]} 11. Bxc6 {[%clk 0:02:06]}  Rb8 {[%clk 0:02:53]} 12. O-O {[%clk 0:02:07]}  Rd8 {[%clk 0:02:50]} 13. Rfd1 {[%clk 0:02:03]}  Rd6 {[%clk 0:02:14]} 14. Bg2 {[%clk 0:01:50]}  c5 {[%clk 0:02:13]} 15. Qe3 {[%clk 0:01:46]}  cxd4 {[%clk 0:02:06]} 16. Rxd4 {[%clk 0:01:47]}  Rxd4 {[%clk 0:01:50]} 17. Qxd4 {[%clk 0:01:47]}  Ba6 {[%clk 0:01:22]} 18. Rd1 {[%clk 0:01:44]}  h6 {[%clk 0:01:15]} 19. Rd2 {[%clk 0:01:29]}  Qc7 {[%clk 0:00:59]} 20. e4 {[%clk 0:01:00]}  Ng4 {[%clk 0:00:32]} 21. f4 {[%clk 0:00:53]}  Bb7 {[%clk 0:00:20]} 22. h3 {[%clk 0:00:41]}  Nf6 {[%clk 0:00:19]} 23. Qd6 {[%clk 0:00:37]}  Qxd6 {[%clk 0:00:15]} 24. Rxd6 {[%clk 0:00:38]}  Kf8 {[%clk 0:00:16]} 25. Rd2 {[%clk 0:00:34]}  Ke7 {[%clk 0:00:14]} 26. Kf2 {[%clk 0:00:30]}  Nd7 {[%clk 0:00:11]} 27. Bf1 {[%clk 0:00:28]}  Nc5 {[%clk 0:00:08]} 28. Ke3 {[%clk 0:00:28]}  Rc8 {[%clk 0:00:08]} 29. Bxc4 {[%clk 0:00:20]}  Nxe4 {[%clk 0:00:07]} 30. Nxe4 {[%clk 0:00:18]}  Rxc4 {[%clk 0:00:05]} 31. Nd6 {[%clk 0:00:14]}  Rb4 {[%clk 0:00:06]} 32. Nxb7 {[%clk 0:00:13]}  Rxb7 {[%clk 0:00:06]} 33. b3 {[%clk 0:00:12]}  f5 {[%clk 0:00:05]} 34. Kd4 {[%clk 0:00:10]}  Kf6 {[%clk 0:00:04]} 35. Kc5 {[%clk 0:00:08]}  Rc7+ {[%clk 0:00:04]} 36. Kb5 {[%clk 0:00:07]}  g5 {[%clk 0:00:04]} 37. b4 {[%clk 0:00:05]}  Rb7+ {[%clk 0:00:02]} 38. Ka5 {[%clk 0:00:05]}  Rc7 {[%clk 0:00:03]} 39. a4 {[%clk 0:00:05]}  gxf4 {[%clk 0:00:03]} 40. gxf4 {[%clk 0:00:05]}  Rc4 {[%clk 0:00:04]} 41. Rf2 {[%clk 0:00:05]}  Ke7 {[%clk 0:00:05]} 42. b5 {[%clk 0:00:05]}  h5 {[%clk 0:00:05]} 43. Ra2 {[%clk 0:00:04]}  Rc7 {[%clk 0:00:02]} 44. Ka6 {[%clk 0:00:05]}  Kd6 {[%clk 0:00:02]} 45. a5 {[%clk 0:00:05]}  Kd5 {[%clk 0:00:01]} 46. Rd2+ {[%clk 0:00:05]}  Ke4 {[%clk 0:00:02]} 47. b6 {[%clk 0:00:05]}  axb6 {[%clk 0:00:02]} 48. axb6 {[%clk 0:00:06]}  Rc6 {[%clk 0:00:03]} 49. Kb5 {[%clk 0:00:06]}  Rc3 {[%clk 0:00:03]} 50. Rb2 {[%clk 0:00:05]}  Rc8 {[%clk 0:00:04]} 51. b7 {[%clk 0:00:06]}  Rb8 {[%clk 0:00:04]} 52. Rb4+ {[%clk 0:00:06]}  Kd5 {[%clk 0:00:03]} 53. Kb6 {[%clk 0:00:06]}  e5 {[%clk 0:00:03]} 54. Rb5+ {[%clk 0:00:06]}  Ke4 {[%clk 0:00:03]} 55. fxe5 {[%clk 0:00:06]}  f4 {[%clk 0:00:03]} 56. e6 {[%clk 0:00:07]}  f3 {[%clk 0:00:04]} 57. e7 {[%clk 0:00:07]}  Re8 {[%clk 0:00:03]} 58. Rb1 {[%clk 0:00:05]}  Ke3 {[%clk 0:00:03]} 59. Kc6 {[%clk 0:00:04]}  f2 {[%clk 0:00:03]} 60. b8=Q {[%clk 0:00:04]}  Rxb8 {[%clk 0:00:03]} 61. Rxb8 {[%clk 0:00:05]}  f1=Q {[%clk 0:00:03]} 62. e8=Q+ {[%clk 0:00:06]}  Kd2 {[%clk 0:00:04]} 63. Rb2+ {[%clk 0:00:06]}  Kc1 {[%clk 0:00:04]} 64. Rb6 {[%clk 0:00:04]}  Qc4+ {[%clk 0:00:04]} 65. Kb7 {[%clk 0:00:04]}  Qd5+ {[%clk 0:00:05]} 66. Qc6+ {[%clk 0:00:05]} 1-0


[Site "https://www.chess.com"]